{"text_format":"3","workbook":"xlsx","n_sheets":1,"sheets":["Spisak namirnica"],"not_rendered":{"images":1,"defined_names":3},"read":"whole","date_system":"1900"}

{"sheet":"Spisak namirnica","index":0,"n_rows":31,"n_cols":8,"rows_kept":31,"merged":[[1,1,1,2]]}
[null,"Spisak namirnica"]
[null,"DATUM"]
[null,"Gotovo?","Artikal","Kategorija","Količina","Cena","Ukupna cena","Brend/komentari"]
[null,null,"Pomorandže","Proizvod",null,null,{"$f":"IFERROR(SUM(SpisakNamirnica[Količina]*SpisakNamirnica[Cena]), \"\")","v":{"v":0,"d":"0.00 din."}}]
[null,null,"Jabuke","Proizvod",null,null,{"$f":"IFERROR(SUM(SpisakNamirnica[Količina]*SpisakNamirnica[Cena]), \"\")","v":{"v":0,"d":"0.00 din."}}]
[null,null,"Banane","Proizvod",null,null,{"$f":"IFERROR(SUM(SpisakNamirnica[Količina]*SpisakNamirnica[Cena]), \"\")","v":{"v":0,"d":"0.00 din."}}]
[null,null,"Zelena salata","Proizvod",null,null,{"$f":"IFERROR(SUM(SpisakNamirnica[Količina]*SpisakNamirnica[Cena]), \"\")","v":{"v":0,"d":"0.00 din."}}]
[null,null,"Paradajz","Proizvod",null,null,{"$f":"IFERROR(SUM(SpisakNamirnica[Količina]*SpisakNamirnica[Cena]), \"\")","v":{"v":0,"d":"0.00 din."}},"  "]
[null,null,"Mleko ","Mlečni proizvodi",null,null,{"$f":"IFERROR(SUM(SpisakNamirnica[Količina]*SpisakNamirnica[Cena]), \"\")","v":{"v":0,"d":"0.00 din."}}]
[null,null,"Sir","Mlečni proizvodi",null,null,{"$f":"IFERROR(SUM(SpisakNamirnica[Količina]*SpisakNamirnica[Cena]), \"\")","v":{"v":0,"d":"0.00 din."}}]
[null,null,"Jaja","Mlečni proizvodi",null,null,{"$f":"IFERROR(SUM(SpisakNamirnica[Količina]*SpisakNamirnica[Cena]), \"\")","v":{"v":0,"d":"0.00 din."}}]
[null,null,"Sitan sir","Mlečni proizvodi",null,null,{"$f":"IFERROR(SUM(SpisakNamirnica[Količina]*SpisakNamirnica[Cena]), \"\")","v":{"v":0,"d":"0.00 din."}}]
[null,null,"Govedina","Meso",null,null,{"$f":"IFERROR(SUM(SpisakNamirnica[Količina]*SpisakNamirnica[Cena]), \"\")","v":{"v":0,"d":"0.00 din."}}]
[null,null,"Živina","Meso",null,null,{"$f":"IFERROR(SUM(SpisakNamirnica[Količina]*SpisakNamirnica[Cena]), \"\")","v":{"v":0,"d":"0.00 din."}}]
[null,null,"Šunka","Meso",null,null,{"$f":"IFERROR(SUM(SpisakNamirnica[Količina]*SpisakNamirnica[Cena]), \"\")","v":{"v":0,"d":"0.00 din."}}]
[null,null,"Sok","Pića",null,null,{"$f":"IFERROR(SUM(SpisakNamirnica[Količina]*SpisakNamirnica[Cena]), \"\")","v":{"v":0,"d":"0.00 din."}}]
[null,null,"Kafa","Pića",null,null,{"$f":"IFERROR(SUM(SpisakNamirnica[Količina]*SpisakNamirnica[Cena]), \"\")","v":{"v":0,"d":"0.00 din."}}]
[null,null,"Čaj","Pića",null,null,{"$f":"IFERROR(SUM(SpisakNamirnica[Količina]*SpisakNamirnica[Cena]), \"\")","v":{"v":0,"d":"0.00 din."}}]
[null,null,"Voda","Pića",null,null,{"$f":"IFERROR(SUM(SpisakNamirnica[Količina]*SpisakNamirnica[Cena]), \"\")","v":{"v":0,"d":"0.00 din."}}]
[null,null,"Rezanci","Testenina",null,null,{"$f":"IFERROR(SUM(SpisakNamirnica[Količina]*SpisakNamirnica[Cena]), \"\")","v":{"v":0,"d":"0.00 din."}}]
[null,null,"Pirinač","Testenina",null,null,{"$f":"IFERROR(SUM(SpisakNamirnica[Količina]*SpisakNamirnica[Cena]), \"\")","v":{"v":0,"d":"0.00 din."}}]
[null,null,"Konzerve","Supa",null,null,{"$f":"IFERROR(SUM(SpisakNamirnica[Količina]*SpisakNamirnica[Cena]), \"\")","v":{"v":0,"d":"0.00 din."}}]
[null,null,"Suva mešavina","Supa",null,null,{"$f":"IFERROR(SUM(SpisakNamirnica[Količina]*SpisakNamirnica[Cena]), \"\")","v":{"v":0,"d":"0.00 din."}}]
[null,null,"Hleb","Pekara",null,null,{"$f":"IFERROR(SUM(SpisakNamirnica[Količina]*SpisakNamirnica[Cena]), \"\")","v":{"v":0,"d":"0.00 din."}}]
[null,null,"Čips","Grickalice",null,null,{"$f":"IFERROR(SUM(SpisakNamirnica[Količina]*SpisakNamirnica[Cena]), \"\")","v":{"v":0,"d":"0.00 din."}}]
[null,null,"Perece","Grickalice",null,null,{"$f":"IFERROR(SUM(SpisakNamirnica[Količina]*SpisakNamirnica[Cena]), \"\")","v":{"v":0,"d":"0.00 din."}}]
[null,null,"Sladoled","Grickalice",null,null,{"$f":"IFERROR(SUM(SpisakNamirnica[Količina]*SpisakNamirnica[Cena]), \"\")","v":{"v":0,"d":"0.00 din."}}]
[null,null,"Kolačići","Grickalice",null,null,{"$f":"IFERROR(SUM(SpisakNamirnica[Količina]*SpisakNamirnica[Cena]), \"\")","v":{"v":0,"d":"0.00 din."}}]
[null,null,"Papirni tanjiri","Pribor",null,null,{"$f":"IFERROR(SUM(SpisakNamirnica[Količina]*SpisakNamirnica[Cena]), \"\")","v":{"v":0,"d":"0.00 din."}}]
[null,null,"Salvete","Pribor",null,null,{"$f":"IFERROR(SUM(SpisakNamirnica[Količina]*SpisakNamirnica[Cena]), \"\")","v":{"v":0,"d":"0.00 din."}}]
[{"$nulls":6},{"$f":"SUBTOTAL(109,SpisakNamirnica[Ukupna cena])","v":{"v":0,"d":"0.00 din."}}]